bitfinex-derivatives/quotes_SOLF0:USTF0_20250919
["timestamp","ask_amount","ask_price","bid_price","bid_amount"]
[1758259767913,2.15602962,244.75,244.67,6.6]
[1758259771213,2.96,244.74,244.67,6.6]
[1758259774024,2.15602962,244.75,244.67,6.6]
[1758259775723,0.03105357,244.75,244.67,6.6]
[1758259776615,0.03105357,244.75,244.69,6.83]
[1758259781228,3.70635357,244.75,244.69,6.83]
[1758259783323,5.08497605,244.74,244.66,12.21851971]
[1758259783526,0.03105357,244.75,244.6,4.5719422]
[1758259783527,5.08497605,244.71,244.6,4.5719422]
[1758259783727,5.08497605,244.71,244.61,6.83]
[1758259784331,5.08497605,244.71,244.62,6.83]
[1758259784332,0.03079304,244.68,244.62,6.83]
[1758259787329,0.03079304,244.68,244.63,6.83]
[1758259788835,0.03079304,244.68,244.63,10.507]
[1758259789035,0.03079304,244.68,244.63,104.057]
[1758259790034,0.03079304,244.68,244.64,6.83]
[1758259790531,0.03079304,244.68,244.63,108.6289422]
[1758259790730,0.03079304,244.68,244.64,6.83]
[1758259791433,0.03079304,244.68,244.61,12.44653788]
[1758259791635,0.03079304,244.68,244.6,6.83]
[1758259792533,3.6765,244.67,244.6,6.83]
[1758259793435,5.08497605,244.66,244.6,6.83]
[1758259794540,5.08497605,244.66,244.55,53.89691825]
[1758259794541,5.08497605,244.66,244.55,4.5719422]
[1758259794738,5.08497605,244.66,244.56,6.83]
[1758259795134,0.02741376,244.63,244.56,6.83]
[1758259795531,0.02741376,244.63,244.56,19.30413272]
[1758259795731,0.02741376,244.63,244.56,22.98223272]
[1758259796241,0.02741376,244.63,244.57,6.5]
[1758259800653,2.99741376,244.63,244.57,6.5]
[1758259800845,2.99741376,244.63,244.53,7.02]
[1758259802051,2.97,244.6,244.53,19.57168935]
[1758259802351,0.02741376,244.63,244.48,7.02]
[1758259802352,5.09497605,244.58,244.48,7.02]
[1758259803046,0.03036416,244.55,244.48,7.02]
[1758259804145,5.12534021,244.55,244.48,7.02]
[1758259804348,3.6784,244.54,244.48,7.02]
[1758259804546,2.12497605,244.52,244.1,29.2008951]
[1758259804841,2.12497605,244.49,244.42,6.86518671]
[1758259805046,2.97,244.48,244.42,6.86518671]
[1758259805245,2.99936904,244.48,244.42,6.86518671]
[1758259805448,0.02936904,244.48,244.42,6.86518671]
[1758259805749,0.02936904,244.48,244.45,7.02]
[1758259806250,0.02936904,244.48,244.46,7.02]
[1758259806452,0.02936904,244.48,244.45,2.12497605]
[1758259806950,0.02936904,244.48,244.46,10.6995]
[1758259807143,3.0,244.63,244.47,7.02]
[1758259807344,3.0,244.63,244.5,7.02]
[1758259807543,2.12497605,244.61,244.5,34.02]
[1758259808254,3.6776,244.6,244.5,7.02]
[1758259808545,3.0,244.57,244.46,7.02]
[1758259809350,3.0,244.63,244.47,2.12497605]
[1758259809547,3.0,244.63,244.45,55.78]
[1758259809548,3.0,244.63,244.5,2.12497605]
[1758259809747,5.12497605,244.63,244.51,7.02]
[1758259809947,3.0,244.63,244.51,7.02]
[1758259811750,3.0,244.6,244.42,6.86518671]
[1758259811954,2.12497605,244.55,244.43,9.14497605]
[1758259812751,3.0,244.54,244.43,7.02]
[1758259817663,3.0,244.54,244.43,10.7]
[1758259818163,2.12497605,244.57,244.44,7.02]
[1758259819467,1.97497605,244.57,244.44,7.02]
[1758259821462,2.12497605,244.54,244.44,7.02]
[1758259821663,3.0,244.53,244.44,7.02]
[1758259822869,2.12497605,244.54,244.45,7.02]
[1758259823370,5.12497605,244.54,244.45,7.02]
[1758259823756,5.12497605,244.54,244.41,118.80643453]
[1758259823757,3.0,244.5,244.36,3.681]
[1758259823957,2.12497605,244.48,244.37,7.02]
[1758259824766,3.0,244.5,244.37,7.02]
[1758259824966,3.0,244.5,244.39,7.02]
[1758259825167,3.0,244.5,244.39,19.35680489]
[1758259825668,2.12497605,244.48,244.39,19.35680489]
[1758259825864,1.36326165,244.46,244.39,19.35680489]
[1758259826766,1.36326165,244.46,244.39,7.02]
[1758259829872,1.36326165,244.44,244.39,7.02]
[1758259830065,1.36326165,244.42,244.33,33.86]
[1758259830268,3.0,244.44,244.34,6.76]
[1758259830467,1.36326165,244.41,244.34,19.28460808]
[1758259830671,1.36326165,244.41,244.34,6.76]
[1758259832575,3.0,244.44,244.34,6.76]
[1758259832775,1.36326165,244.42,244.34,6.76]
[1758259834968,1.36326165,244.37,244.26,6.76]
[1758259835165,1.36326165,244.35,244.26,8.12326165]
[1758259835873,3.0,244.38,244.26,8.12326165]
[1758259836074,1.36326165,244.36,244.27,6.76]
[1758259836469,1.36326165,244.36,244.27,8.12326165]
[1758259837367,3.0,244.52,244.29,1.36326165]
[1758259837572,1.36326165,244.42,244.34,6.76]
[1758259837776,6.83080457,244.6,244.34,6.76]
[1758259837777,1.36326165,244.4,244.34,6.76]
[1758259838178,1.36326165,244.38,244.34,6.76]
[1758259838475,4.36326165,244.38,244.34,6.76]
[1758259838879,1.36326165,244.4,244.34,6.76]
[1758259839080,3.0,244.43,244.34,6.76]
[1758259839081,1.36326165,244.42,244.34,6.76]
[1758259839276,1.36326165,244.4,244.34,6.76]
[1758259839679,1.36326165,244.42,244.34,6.76]
[1758259840076,1.36326165,244.42,244.34,8.12326165]
[1758259840378,1.36326165,244.42,244.34,6.76]
[1758259841074,1.36326165,244.42,244.34,8.12326165]
[1758259841280,3.0,244.43,244.34,8.12326165]
[1758259842669,3.0,244.43,244.34,6.76]
[1758259842870,3.0,244.43,244.34,8.12326165]
[1758259843273,3.0,244.47,244.37,6.76]
[1758259843579,1.36326165,244.49,244.41,6.76]
[1758259843777,3.0,244.51,244.42,1.36326165]
[1758259843979,4.36326165,244.51,244.42,1.36326165]
[1758259844182,0.02886394,244.49,244.44,1.39222437]
[1758259844371,0.02886394,244.49,244.45,6.76]
[1758259844771,0.02886394,244.49,244.47,6.76]
[1758259844981,0.02886394,244.49,244.45,1.36326165]
[1758259845479,0.02886394,244.49,244.46,6.76]
[1758259846176,1.36326165,244.48,244.44,0.02896272]
[1758259846482,0.02886394,244.49,244.44,0.02896272]
[1758259846483,3.0,244.45,244.44,0.02896272]
[1758259848081,1.36326165,244.46,244.44,0.02896272]
[1758259848277,3.0,244.48,244.44,0.02896272]
[1758259848480,1.36326165,244.47,244.44,0.02896272]
[1758259848679,4.36326165,244.47,244.44,0.02896272]
[1758259849080,4.21326165,244.47,244.44,0.02896272]
[1758259849383,0.02886394,244.49,244.44,6.78896272]
[1758259849384,1.39212559,244.49,244.44,6.78896272]
[1758259849681,0.02886394,244.49,244.45,6.76]
[1758259850274,0.02886394,244.49,244.44,0.02896272]
[1758259850484,0.02886394,244.49,244.44,1.39222437]
[1758259850685,0.02886394,244.49,244.45,6.76]
[1758259850879,0.02886394,244.49,244.44,1.39222437]
[1758259851184,0.02886394,244.49,244.45,6.76]
[1758259851378,0.02886394,244.49,244.44,5.07212437]
[1758259851379,0.02886394,244.49,244.47,6.76]
[1758259851779,0.02886394,244.49,244.47,8.12326165]
[1758259852787,0.02886394,244.49,244.47,6.76]
[1758259854189,0.02886394,244.49,244.44,0.02896272]
[1758259854486,3.02886394,244.49,244.44,0.02896272]
[1758259855892,0.02886394,244.49,244.44,0.02896272]
[1758259856185,0.02886394,244.49,244.45,6.49]
[1758259856988,0.02886394,244.49,244.44,1.39222437]
[1758259857388,0.02886394,244.49,244.44,6.51896272]
[1758259857691,0.02886394,244.49,244.45,6.49]
[1758259858788,0.02886394,244.49,244.44,1.39222437]
[1758259859294,0.02886394,244.49,244.45,6.65]
[1758259860790,0.02886394,244.49,244.44,1.39222437]
[1758259860992,0.02886394,244.49,244.48,8.01326165]
[1758259861191,0.02886394,244.49,244.48,6.65]
[1758259861397,0.02886394,244.49,244.48,8.01326165]
[1758259862688,3.0,244.59,244.48,8.01326165]
[1758259862890,3.0,244.59,244.52,6.65]
[1758259863087,3.0,244.59,244.52,8.01326165]
[1758259863496,4.38326165,244.63,244.54,1.36326165]
[1758259863691,2.82674624,244.62,244.54,1.36326165]
[1758259863895,3.02,244.63,244.52,6.65]
[1758259863896,3.02,244.63,244.56,1.36326165]
[1758259864095,3.02,244.63,244.58,1.36326165]
[1758259864298,3.02,244.63,244.58,8.01326165]
[1758259864697,309.22,244.66,244.58,1.36326165]
[1758259864892,2.82648507,244.65,244.58,1.36326165]
[1758259865099,2.82648507,244.64,244.58,1.36326165]
[1758259865396,3.02,244.67,244.58,1.36326165]
[1758259865397,2.82648507,244.63,244.58,8.01326165]
[1758259865602,1.36326165,244.66,244.59,3.67435662]
[1758259865798,3.02,244.64,244.6,3.67435662]
[1758259865999,3.02,244.63,244.61,3.67435662]
[1758259866299,3.02,244.63,244.62,3.67435662]
[1758259866692,4.38326165,244.63,244.62,3.67435662]
[1758259867298,3.42,244.63,244.62,3.67435662]
[1758259867500,7.59972604,244.63,244.56,0.02865794]
[1758259867698,3.02,244.6,244.56,0.02865794]
[1758259868099,3.02,244.6,244.53,1.36326165]
[1758259868301,3.02,244.6,244.56,0.02877983]
[1758259868806,1.36326165,244.63,244.56,0.02877983]
[1758259869404,1.36326165,244.61,244.56,0.02877983]
[1758259869606,3.02,244.6,244.56,0.02877983]
[1758259869801,3.02,244.58,244.56,0.02877983]
[1758259870107,4.38326165,244.57,244.56,0.02877983]
[1758259871304,4.55384041,244.69,244.56,0.02877983]
[1758259871305,3.02,244.62,244.56,0.02877983]
[1758259871504,1.36326165,244.59,244.56,0.02877983]
[1758259872300,3.02,244.62,244.56,0.02877983]
[1758259872501,1.36326165,244.65,244.56,0.02877983]
[1758259872704,1.36326165,244.65,244.57,1.36326165]
[1758259873104,3.02,244.67,244.59,0.03021203]
[1758259873306,4.38326165,244.67,244.59,0.03021203]
[1758259874507,1.36326165,244.65,244.59,0.03021203]
[1758259875610,1.36326165,244.66,244.59,0.03021203]
[1758259875811,3.02,244.67,244.59,0.03021203]
[1758259877807,4.55384041,244.79,244.6,6.65]
[1758259877808,3.02,244.72,244.6,6.65]
[1758259878007,2.8092972,244.71,244.6,6.65]
[1758259878213,3.02,244.72,244.6,6.65]
[1758259878410,3.02,244.72,244.63,0.02839458]
[1758259880612,3.02,244.72,244.63,6.67839458]
[1758259883909,309.18,244.8,244.63,6.67839458]
[1758259884113,3.02,244.78,244.63,6.67839458]
[1758259884313,2.80830581,244.77,244.63,6.65]
[1758259884612,2.80830581,244.77,244.68,0.02767951]
[1758259888016,3.02,244.78,244.69,6.65]
[1758259889017,100.58,244.81,244.69,6.65]
[1758259889412,3.01,244.83,244.69,6.65]
[1758259890017,3.01,244.83,244.74,0.02971801]
[1758259890316,3.01,244.83,244.74,6.50971801]
[1758259892717,3.01,244.85,244.74,0.02971801]
[1758259893017,5.26210088,244.78,244.63,6.48]
[1758259893218,3.01,244.76,244.63,6.48]
[1758259893825,3.01,244.76,244.67,0.02718899]
[1758259894920,3.01,244.76,244.68,6.48]
[1758259895123,4.55384041,244.88,244.68,6.48]
[1758259895124,3.01,244.88,244.68,6.48]
[1758259895325,5.26210088,244.83,244.68,6.48]
[1758259895527,5.79941409,244.82,244.68,6.48]
[1758259895828,3.01,244.82,244.73,0.02737581]
[1758259896327,2.78948927,244.81,244.73,0.02737581]
[1758259896523,3.01,244.82,244.73,0.02737581]
[1758259896720,3.01,244.8,244.73,0.02737581]
[1758259900433,2.78888823,244.79,244.73,0.02737581]
[1758259900633,3.01,244.78,244.73,0.02737581]
[1758259900929,3.01,244.82,244.73,0.02737581]
[1758259901137,3.01,244.8,244.73,0.02737581]
[1758259901331,3.01,244.78,244.73,0.02737581]
[1758259901531,3.01,244.82,244.73,0.02737581]
[1758259901733,3.01,244.8,244.73,0.02737581]
[1758259902037,2.79019794,244.79,244.73,0.02737581]
[1758259902242,3.01,244.81,244.73,0.02737581]
[1758259902538,8.27210088,244.79,244.73,0.02737581]
[1758259902732,3.01,244.77,244.73,0.02737581]
[1758259902933,2.79019934,244.76,244.73,0.02737581]
[1758259903136,5.26210088,244.79,244.73,0.02737581]
[1758259903336,5.80063771,244.78,244.73,0.02737581]
[1758259903632,3.01,244.76,244.73,0.02737581]
[1758259903836,3.01,244.78,244.73,0.02737581]
[1758259904038,3.01,244.76,244.73,0.02737581]
[1758259904337,3.01,244.8,244.73,0.02737581]
[1758259904539,2.79283035,244.79,244.73,0.02737581]
[1758259904740,3.01,244.8,244.66,6.48]
[1758259904941,2.79302762,244.79,244.74,0.02753058]
[1758259905138,2.79302762,244.78,244.74,0.02753058]
[1758259905441,3.01,244.8,244.74,0.02753058]
[1758259905641,3.01,244.78,244.74,0.02753058]
[1758259905833,3.01,244.8,244.74,0.02753058]
[1758259906035,3.01,244.78,244.74,0.02753058]
[1758259906336,5.26210088,244.83,244.74,0.02753058]
[1758259906337,3.01,244.8,244.74,0.02753058]
[1758259906544,3.01,244.78,244.74,0.02753058]
[1758259907635,3.01,244.82,244.74,6.50753058]
[1758259907938,2.79568461,244.81,244.74,6.50753058]
[1758259908139,3.01,244.82,244.74,6.50753058]
[1758259908335,2.79568466,244.81,244.74,6.50753058]
[1758259908539,3.01,244.82,244.74,6.50753058]
[1758259908741,2.79654237,244.81,244.74,6.50753058]
[1758259908930,3.01,244.88,244.74,6.50753058]
[1758259909129,2.79688967,244.87,244.74,6.50753058]
[1758259909438,2.79749348,244.86,244.74,6.48]
[1758259909636,3.01,244.88,244.78,0.02946575]
[1758259909835,3.01,244.86,244.78,0.02946575]
[1758259911541,3.01,244.86,244.78,6.50946575]
[1758259911736,0.71110385,244.89,244.78,6.50946575]
[1758259911940,2.79716862,244.88,244.78,6.50946575]
[1758259912234,64.71280909,244.91,244.78,6.50946575]
[1758259913145,61.70280909,244.91,244.78,6.50946575]
[1758259913341,3.01,244.88,244.78,6.50946575]
[1758259915840,3.01,244.88,244.81,6.76]
[1758259917537,61.70280909,244.91,244.78,0.02946575]
[1758259917538,3.01,244.86,244.78,0.02946575]
[1758259918241,3.02,244.83,244.78,0.02946575]
[1758259918435,2.1227497,244.84,244.78,0.02946575]
[1758259918632,3.02,244.83,244.78,0.02946575]
[1758259918835,2.1227497,244.84,244.78,0.02946575]
[1758259919034,3.02,244.89,244.78,7.13946575]
[1758259920840,61.70280909,244.91,244.78,7.13946575]
[1758259922537,61.70280909,244.91,244.81,7.11]
[1758259923045,3.02,244.93,244.81,7.11]
[1758259923246,3.02,244.93,244.84,0.02805685]
[1758259923445,0.02926433,244.89,244.84,0.02805685]
[1758259923645,0.02926433,244.89,244.84,7.13805685]
[1758259924347,0.02926433,244.89,244.84,0.02805685]
[1758259924847,0.02926433,244.89,244.85,7.11]
[1758259925345,3.04926433,244.89,244.84,0.02805685]
[1758259925748,0.02926433,244.89,244.84,0.02805685]
[1758259929349,0.02926433,244.89,244.84,0.42805685]
[1758259930652,0.02926433,244.89,244.85,3.6737]
[1758259931050,0.02926433,244.89,244.86,0.4]
[1758259931243,3.02,245.0,244.87,3.6735]
[1758259931647,3.02,245.0,244.84,62.40688515]
[1758259931843,308.78,245.08,244.84,62.40688515]
[1758259932057,308.78,245.08,244.88,5.25808515]
[1758259932253,3.05,245.07,244.88,105.87808515]
[1758259932455,3.05,245.07,244.96,0.02623237]
[1758259939464,3.05,245.04,244.96,0.02623237]
[1758259939861,3.05,244.98,244.96,0.02623237]
[1758259941057,3.05,244.99,244.96,0.02623237]
[1758259941460,5.17148607,244.97,244.96,0.02623237]
[1758259941863,3.05,244.97,244.96,0.02623237]
[1758259945967,2.83201642,245.07,244.96,0.02623237]
[1758259945968,3.05,245.06,244.96,0.02623237]
[1758259946170,3.05,245.01,244.96,0.02623237]
[1758259946371,2.12148607,244.99,244.96,0.02623237]
[1758259946868,3.05,244.98,244.96,0.02623237]
[1758259947072,2.12148607,244.99,244.96,0.02623237]
[1758259947370,103.55,244.98,244.96,0.02623237]
[1758259947566,105.67148607,244.98,244.96,0.02623237]
[1758259947871,4.40850022,244.97,244.96,0.02623237]
[1758259949568,4.80850022,244.97,244.96,0.02623237]
[1758259951874,3.05,244.97,244.96,0.02623237]
[1758259954473,3.04,244.99,244.96,0.02623237]
[1758259954682,3.04,244.98,244.96,0.02623237]
[1758259956074,100.5,244.99,244.96,0.02623237]
[1758259956376,3.04,244.98,244.96,0.02623237]
[1758259957574,1.35850022,244.97,244.96,0.02623237]
[1758259957779,4.39850022,244.97,244.96,0.02623237]
[1758259958078,104.89850022,244.97,244.96,0.02623237]
[1758259958468,103.94,244.97,244.96,0.02623237]
[1758259958778,105.29850022,244.97,244.96,0.02623237]
[1758259959280,104.89850022,244.97,244.96,0.02623237]
[1758259960483,4.39850022,244.97,244.96,0.02623237]
[1758259960782,3.04,244.97,244.96,0.02623237]
[1758259965185,3.44,244.97,244.96,0.02623237]
[1758259965386,4.79850022,244.97,244.85,6.81]
[1758259965580,4.39850022,244.97,244.85,6.81]
[1758259965786,54.08,244.96,244.85,6.81]
[1758259965985,1.35850022,244.94,244.85,6.81]
[1758259966588,54.08,244.96,244.87,1.38773811]
[1758259966881,4.39850022,244.97,244.88,6.81]
[1758259966882,3.04,244.97,244.88,6.81]
[1758259967188,3.04,244.97,244.9,1.35850022]
[1758259967981,3.04,244.97,244.92,1.35850022]
[1758259968587,3.04,244.97,244.92,1.38993624]
[1758259969089,79.15,244.98,244.92,1.38993624]
[1758259969282,79.15,244.98,244.92,1.23993624]
[1758259969888,80.50850022,244.98,244.92,0.03143602]
[1758259970181,3.01,244.94,244.92,0.03143602]
[1758259970883,1.35850022,244.95,244.92,0.03143602]
[1758259971088,3.01,244.94,244.92,0.03143602]
[1758259973884,3.01,245.0,244.92,0.03143602]
[1758259974085,100.56,244.99,244.92,0.03143602]
[1758259974281,100.54,244.98,244.92,0.03143602]
[1758259979090,3.01,244.95,244.92,0.03143602]
[1758259979592,1.35850022,244.96,244.92,0.03143602]
[1758259980093,3.01,244.95,244.92,0.03143602]
[1758259980291,5.91234063,244.99,244.92,0.03143602]
[1758259980492,103.57,244.98,244.92,0.03143602]
[1758259980695,30.06,244.97,244.92,0.03143602]
[1758259980895,30.06,244.97,244.89,1.35850022]
[1758259980896,3.01,244.96,244.89,1.35850022]
[1758259981192,3.01,244.96,244.92,0.03069999]
[1758259981885,30.06,244.97,244.92,0.03069999]
[1758259982087,3.01,244.96,244.92,0.03069999]
[1758259982294,30.06,244.97,244.92,0.03069999]
[1758259982592,3.01,244.96,244.92,0.03069999]
[1758259982793,30.06,244.97,244.95,1.35850022]
[1758259982994,3.01,244.96,244.95,1.35850022]
[1758259983698,4.55384041,245.01,244.95,8.36850022]
[1758259983993,3.01,245.0,244.98,1.35850022]
[1758259984191,3.01,245.03,244.98,1.35850022]
[1758259984398,4.55384041,245.05,245.02,1.35850022]
[1758259984596,100.56,245.04,245.02,1.35850022]
[1758259984999,3.01,245.03,245.02,1.35850022]
[1758259986296,100.56,245.03,245.01,0.02624045]
[1758259986592,3.01,245.02,245.01,0.02624045]
[1758259986997,4.55384041,245.05,245.01,0.02624045]
[1758259987194,100.5,245.04,245.03,1.35850022]
[1758259987397,5.26437076,245.07,245.03,1.35850022]
[1758259987398,3.01,245.06,245.03,1.35850022]
[1758259987597,100.58,245.05,245.03,1.35850022]
[1758259988592,3.01,245.04,245.03,1.35850022]
[1758259988989,100.58,245.05,245.01,1.38474067]
[1758259989396,3.01,245.04,245.01,1.38474067]
[1758259990190,100.58,245.05,245.01,1.38474067]
[1758259990591,103.59,245.05,245.01,1.38474067]
[1758259990799,3.72053035,245.07,245.03,1.35850022]
[1758259991002,103.57,245.06,245.03,1.35850022]
[1758259991902,0.71053035,245.07,245.05,1.35850022]
[1758259992103,100.54,245.09,245.05,1.35850022]
[1758259992301,3.01,245.1,245.08,1.35850022]
[1758259992499,100.54,245.09,245.05,7.01]
[1758259992806,100.54,245.09,245.08,1.35850022]
[1758259992995,103.55,245.09,245.08,1.35850022]
[1758259993196,3.01,245.08,245.05,1.38536144]
[1758259993604,103.55,245.09,245.05,1.38536144]
[1758259993806,103.55,245.09,245.07,1.35850022]
[1758259994700,3.01,245.12,245.07,1.35850022]
[1758259994901,4.55384041,245.13,245.07,1.35850022]
[1758259995102,7.56384041,245.11,245.05,1.38536144]
[1758259995302,3.01,245.11,245.05,1.38536144]
[1758259995705,4.36850022,245.11,245.05,0.02686122]
[1758259996201,103.81,245.1,245.05,1.38536144]
[1758259996406,3.01,245.09,245.05,1.38536144]
[1758259999414,100.86,245.08,245.06,7.01]
[1758259999611,8.27426197,245.14,245.06,7.01]
[1758259999814,100.82,245.13,245.09,1.35850022]
[1758260000113,103.83,245.13,245.09,1.35850022]
[1758260000313,103.83,245.13,245.05,7.03686122]
[1758260000716,103.83,245.13,245.08,8.36850022]
[1758260002016,100.82,245.13,245.08,8.36850022]
[1758260002216,3.01,245.12,245.08,1.35850022]
[1758260003208,3.01,245.12,245.08,8.36850022]
[1758260003414,3.01,245.12,245.08,1.35850022]
[1758260003815,3.01,245.12,245.05,0.02686122]
[1758260004019,3.01,245.12,245.07,8.36850022]
[1758260004214,100.82,245.13,245.07,8.36850022]
[1758260004520,103.83,245.13,245.07,1.35850022]
[1758260005419,103.83,245.13,245.05,1.38536144]
[1758260007721,103.83,245.13,245.05,0.02686122]
[1758260013519,3.01,245.13,245.05,0.02686122]
[1758260013720,100.7,245.12,245.05,8.64626399]
[1758260016519,3.01,245.13,245.05,6.52686122]
[1758260016723,36.56,245.12,245.08,2.11940277]
[1758260016919,65.1,245.12,245.09,2.11940277]
[1758260017121,0.71042156,245.14,245.09,8.61940277]
[1758260017324,95.64,245.13,245.09,8.61940277]
[1758260017522,100.76,245.12,245.09,8.61940277]
[1758260017717,100.76,245.12,245.09,2.11940277]
[1758260017925,103.77,245.12,245.06,2.11940277]
[1758260018120,103.75,245.12,245.06,2.11940277]
[1758260018325,3.01,245.12,245.06,2.11940277]
[1758260018625,100.72,245.11,245.07,6.5]
[1758260019025,3.01,245.1,245.06,2.11940277]
[1758260020228,3.01,245.1,245.06,8.61940277]
[1758260020424,103.73,245.11,245.06,8.61940277]
[1758260020628,100.72,245.11,245.06,2.11940277]
[1758260020831,100.72,245.11,245.07,6.5]
[1758260021124,103.73,245.11,245.07,6.5]
[1758260024824,3.01,245.11,245.07,6.5]
[1758260025030,31.36,245.11,245.05,8.64626399]
[1758260027630,0.02581747,245.1,245.06,6.5]
[1758260028134,0.02581747,245.1,245.05,2.14626399]
[1758260028332,0.02581747,245.1,245.06,6.5]
[1758260028735,3.03581747,245.1,245.06,6.5]
[1758260029041,0.02581747,245.1,245.08,6.5]
[1758260029634,0.02581747,245.1,245.07,2.11940277]
[1758260030137,0.02581747,245.1,245.08,6.5]
[1758260030334,0.02581747,245.1,245.07,2.11940277]
[1758260031338,0.02581747,245.1,245.08,6.5]
[1758260031841,0.02581747,245.1,245.07,2.11940277]
[1758260032037,0.02581747,245.1,245.08,6.5]
[1758260033340,0.02581747,245.1,245.07,2.11940277]
[1758260033543,0.02581747,245.1,245.08,6.5]
[1758260034739,0.02581747,245.1,245.07,2.11940277]
[1758260035240,0.02581747,245.1,245.08,6.5]
[1758260035439,0.02581747,245.1,245.07,2.11940277]
[1758260035639,0.02581747,245.1,245.08,7.13]
[1758260036536,1.02005006,245.17,245.1,7.13]
[1758260036743,4.55384041,245.27,245.15,7.13]
[1758260036941,1.01974082,245.26,245.19,7.13]
[1758260037142,1.01974082,245.25,245.19,7.13]
[1758260037341,1.01974082,245.24,245.18,2.11940277]
[1758260037542,3.03,245.28,245.19,7.13]
[1758260037745,1.01971406,245.27,245.19,7.13]
[1758260037942,1.01971406,245.27,245.19,7.15768329]
[1758260038137,3.02,245.26,245.19,0.02768329]
[1758260038337,1.01971406,245.25,245.19,0.02768329]
[1758260039641,1.01971406,245.25,245.2,3.5938579]
[1758260039842,1.01971406,245.24,245.21,3.5938579]
[1758260040142,1.01971406,245.24,245.22,3.5938579]
[1758260040339,4.03971406,245.24,245.23,3.5938579]
[1758260041942,1.01971406,245.24,245.23,3.5938579]
[1758260042244,3.02,245.26,245.23,3.5938579]
[1758260042445,1.01971406,245.25,245.19,6.94768329]
[1758260042646,4.03971406,245.25,245.2,3.59209869]
[1758260042945,1.01971406,245.24,245.21,3.59209869]
[1758260043141,3.02,245.28,245.22,3.59209869]
[1758260043340,3.02,245.26,245.23,3.59209869]
[1758260043535,1.01977932,245.25,245.19,0.02768329]
[1758260043741,4.03977932,245.24,245.2,3.5911281]
[1758260043942,3.02,245.24,245.21,3.5911281]
[1758260044141,3.02,245.24,245.22,3.5911281]
[1758260044348,3.02,245.24,245.23,3.5911281]
[1758260044548,4.0397659,245.24,245.23,3.5911281]
[1758260045241,4.0397659,245.24,245.19,0.02768329]
[1758260045440,3.02,245.28,245.2,3.58926784]
[1758260045646,1.01973328,245.27,245.21,3.58926784]
[1758260045850,3.02,245.26,245.22,3.58926784]
[1758260046048,4.03973328,245.25,245.23,3.58926784]
[1758260046344,3.02,245.25,245.19,6.94768329]
[1758260046647,3.02,245.25,245.21,6.92]
[1758260046837,3.02,245.25,245.22,3.58815712]
[1758260047042,3.02,245.25,245.23,3.58815712]
[1758260047248,3.02,245.25,245.24,3.58815712]
[1758260048743,2.11940277,245.29,245.24,3.58815712]
[1758260049043,3.02,245.28,245.25,3.58460186]
[1758260049244,3.02,245.28,245.21,6.92]
[1758260049436,3.02,245.28,245.23,0.02698256]
[1758260049637,3.02,245.28,245.24,10.50332978]
[1758260049843,3.02,245.28,245.25,3.58332978]
[1758260050040,3.02,245.28,245.24,6.92]
[1758260050342,0.70997225,245.3,245.24,6.92]
[1758260050541,4.74959056,245.3,245.24,6.92]
[1758260050850,3.13902108,245.29,245.23,0.02698256]
[1758260051148,3.02,245.25,245.23,0.02698256]
[1758260051344,2.11940277,245.26,245.23,0.02698256]
[1758260051549,3.02,245.25,245.23,0.02698256]
[1758260051745,2.11940277,245.26,245.23,0.02698256]
[1758260052444,4.03972994,245.25,245.23,0.02698256]
[1758260052644,4.03972994,245.24,245.23,0.02698256]
[1758260052844,4.43972994,245.24,245.23,0.02698256]
[1758260053640,4.03972994,245.24,245.23,0.02698256]
[1758260054046,3.02,245.29,245.23,0.02698256]
[1758260054252,3.02,245.27,245.23,0.02698256]
[1758260056047,105.63940277,245.29,245.23,0.02698256]
[1758260056249,3.02,245.27,245.23,0.02698256]
[1758260056451,3.13911943,245.26,245.23,0.02698256]